bitfinex-derivatives/quotes_SOLF0:USTF0_20250904
["timestamp","ask_amount","ask_price","bid_price","bid_amount"]
[1757018090847,4.45,203.55,203.49,1.94880227]
[1757018091049,1.94880227,203.56,203.5,0.03322457]
[1757018091249,1.94880227,203.58,203.51,1.94880227]
[1757018091450,4.45,203.59,203.53,1.94880227]
[1757018091647,4.45,203.59,203.54,7.61]
[1757018091844,4.45,203.59,203.53,1.94880227]
[1757018092146,4.45,203.59,203.54,0.03745603]
[1757018092351,4.45,203.59,203.55,7.61]
[1757018092645,1.94880227,203.6,203.55,7.61]
[1757018092950,4.45,203.59,203.55,7.61]
[1757018094352,1.94880227,203.6,203.55,7.61]
[1757018094545,4.45,203.59,203.55,7.61]
[1757018094845,4.45,203.59,203.54,0.03745603]
[1757018095045,1.94880227,203.6,203.54,0.03745603]
[1757018095246,6.39880227,203.6,203.54,7.64745603]
[1757018098854,4.45,203.6,203.54,7.64745603]
[1757018099049,6.39880227,203.6,203.54,7.64745603]
[1757018099960,4.45,203.6,203.56,7.61]
[1757018100151,4.45,203.6,203.55,1.94880227]
[1757018100352,316.64,203.65,203.54,0.03745603]
[1757018100353,6.39880227,203.63,203.57,1.94880227]
[1757018100550,127.29880227,203.64,203.58,7.61]
[1757018100952,127.29880227,203.64,203.58,7.64329896]
[1757018101953,4.45,203.64,203.6,7.61]
[1757018102153,1.94880227,203.65,203.6,7.61]
[1757018102359,6.39880227,203.65,203.6,7.61]
[1757018103462,1.94880227,203.65,203.59,1.94880227]
[1757018103662,6.39880227,203.65,203.59,1.94880227]
[1757018103955,1.94880227,203.65,203.6,7.61]
[1757018104155,1.94880227,203.65,203.59,1.94880227]
[1757018104349,1.94880227,203.65,203.6,7.61]
[1757018104552,6.39880227,203.65,203.59,9.55880227]
[1757018104762,6.39880227,203.65,203.59,7.61]
[1757018104964,6.39880227,203.65,203.59,9.55880227]
[1757018106358,4.45,203.65,203.59,9.55880227]
[1757018106554,6.39880227,203.65,203.59,9.55880227]
[1757018107461,4.45,203.65,203.59,9.55880227]
[1757018109460,4.45,203.65,203.59,1.94880227]
[1757018109862,1.94880227,203.66,203.58,0.03329896]
[1757018110162,4.45,203.65,203.59,7.61]
[1757018111363,6.39880227,203.65,203.59,7.61]
[1757018112165,4.45,203.62,203.58,0.03329896]
[1757018112464,4.45,203.62,203.58,7.64329896]
[1757018113561,4.45,203.62,203.58,0.03329896]
[1757018113762,4.45,203.62,203.58,7.64329896]
[1757018113966,4.45,203.62,203.59,7.61]
[1757018114564,1.94880227,203.61,203.59,7.61]
[1757018116464,1.94880227,203.61,203.58,0.03329896]
[1757018116665,1.94880227,203.61,203.59,7.61]
[1757018116864,1.94880227,203.61,203.58,0.03329896]
[1757018117069,1.94880227,203.61,203.59,7.61]
[1757018117567,1.94880227,203.63,203.58,0.03329896]
[1757018117866,6.38880227,203.63,203.58,0.03329896]
[1757018118068,6.38880227,203.63,203.59,7.33]
[1757018118659,6.38880227,203.63,203.58,0.03329896]
[1757018119861,6.38880227,203.63,203.59,7.33]
[1757018120364,6.38880227,203.63,203.58,0.03329896]
[1757018120565,4.44,203.6,203.58,7.36329896]
[1757018120769,1.94880227,203.61,203.59,7.33]
[1757018122169,6.38880227,203.61,203.59,7.33]
[1757018125271,1.94880227,203.61,203.59,7.33]
[1757018125473,4.44,203.64,203.59,7.33]
[1757018125773,6.38880227,203.62,203.59,7.33]
[1757018125968,4.44,203.61,203.59,7.33]
[1757018126870,4.44,203.59,203.58,0.03329896]
[1757018127071,1.94880227,203.6,203.48,7.33]
[1757018127276,1.94880227,203.52,203.48,7.33]
[1757018127471,1.94880227,203.52,203.46,7.33]
[1757018128269,1.94880227,203.52,203.46,9.27880227]
[1757018128473,0.03541947,203.51,203.47,7.33]
[1757018129572,0.03541947,203.51,203.46,1.94880227]
[1757018130373,0.03541947,203.51,203.47,7.33]
[1757018130572,0.03541947,203.51,203.46,1.94880227]
[1757018130773,1.94880227,203.5,203.43,9.27880227]
[1757018130971,6.38880227,203.5,203.43,9.27880227]
[1757018131175,6.38880227,203.5,203.43,1.94880227]
[1757018131474,6.38880227,203.5,203.44,7.33]
[1757018134379,1.94880227,203.48,203.44,7.33]
[1757018134678,1.94880227,203.48,203.43,1.94880227]
[1757018134978,1.94880227,203.48,203.44,7.33]
[1757018135279,1.94880227,203.48,203.43,1.94880227]
[1757018135475,1.94880227,203.48,203.42,1.94880227]
[1757018135981,1.94880227,203.48,203.43,7.33]
[1757018136282,0.03676894,203.47,203.42,1.94880227]
[1757018136583,0.03676894,203.47,203.43,7.33]
[1757018137077,0.03676894,203.47,203.42,1.94880227]
[1757018137479,0.03676894,203.47,203.43,7.33]
[1757018138082,0.03676894,203.47,203.39,4.10183454]
[1757018138275,0.03676894,203.47,203.42,1.94880227]
[1757018138484,0.03676894,203.47,203.43,7.33]
[1757018138886,0.03676894,203.47,203.42,1.94880227]
[1757018139079,0.03676894,203.47,203.43,7.33]
[1757018139279,4.45,203.46,203.43,7.33]
[1757018139485,4.45,203.46,203.41,7.33]
[1757018139783,4.45,203.46,203.4,1.94880227]
[1757018139983,4.45,203.46,203.41,7.33]
[1757018140583,4.45,203.46,203.4,1.94880227]
[1757018140779,0.03676894,203.47,203.41,7.33]
[1757018140979,0.03676894,203.47,203.43,7.33]
[1757018141575,0.03676894,203.47,203.42,1.94880227]
[1757018141780,0.03676894,203.47,203.43,7.33]
[1757018141978,0.03676894,203.47,203.42,1.94880227]
[1757018142182,4.45,203.46,203.43,7.33]
[1757018142487,0.03676894,203.47,203.38,4.10183454]
[1757018142488,1.94880227,203.44,203.38,7.33]
[1757018143587,4.45,203.45,203.38,7.33]
[1757018147585,3.04650165,203.44,203.38,7.33]
[1757018150998,7.49650165,203.45,203.38,7.33]
[1757018154103,4.45,203.45,203.38,7.33]
[1757018162613,3.04650165,203.44,203.38,7.33]
[1757018162814,4.48,203.43,203.38,7.33]
[1757018163309,4.48,203.43,203.35,324.39]
[1757018163529,4.48,203.42,203.35,7.97]
[1757018170821,0.03242987,203.43,203.35,7.97]
[1757018171313,4.48,203.41,203.35,7.97]
[1757018177219,3.04650165,203.4,203.35,7.97]
[1757018178126,4.45,203.39,203.3,8.03]
[1757018178721,0.032466,203.37,203.3,8.03]
[1757018182928,0.032466,203.37,203.3,12.4562]
[1757018183228,0.032466,203.37,203.31,8.03]
[1757018187831,0.032466,203.37,203.31,4.10183454]
[1757018188033,0.032466,203.37,203.32,8.03]
[1757018188635,4.46,203.36,203.31,4.10183454]
[1757018188830,4.46,203.36,203.3,4.10183454]
[1757018189531,4.46,203.36,203.31,8.03]
[1757018190441,0.032466,203.37,203.31,8.03]
[1757018190738,0.032466,203.37,203.33,8.03]
[1757018191334,0.032466,203.37,203.33,4.10183454]
[1757018191535,0.032466,203.37,203.34,8.03]
[1757018192135,0.032466,203.37,203.34,12.4554]
[1757018192444,0.032466,203.37,203.36,8.03]
[1757018192943,3.04650165,203.46,203.36,11.07650165]
[1757018193140,4.49,203.45,203.37,8.03]
[1757018203450,1.9496781,203.43,203.37,9.9796781]
[1757018204050,1.9496781,203.43,203.37,8.03]
[1757018204251,1.9496781,203.43,203.37,9.9796781]
[1757018209353,6.4396781,203.45,203.4,7.57]
[1757018210451,6.4396781,203.45,203.39,1.9496781]
[1757018210652,6.4396781,203.45,203.37,7.57]
[1757018210853,6.4396781,203.45,203.39,1.9496781]
[1757018211250,4.49,203.45,203.4,7.57]
[1757018211451,1.9496781,203.45,203.4,7.57]
[1757018211847,1.9496781,203.47,203.41,1.9496781]
[1757018212447,1.9496781,203.47,203.42,7.57]
[1757018212650,1.9496781,203.47,203.41,1.9496781]
[1757018212848,1.9496781,203.47,203.42,7.57]
[1757018213048,1.9496781,203.47,203.39,7.57]
[1757018213248,1.9496781,203.47,203.41,1.9496781]
[1757018213555,1.9496781,203.47,203.42,7.57]
[1757018213750,1.9496781,203.47,203.41,1.9496781]
[1757018213956,1.9496781,203.47,203.42,7.57]
[1757018214158,1.9496781,203.47,203.4,7.57]
[1757018215756,4.48,203.48,203.4,7.57]
[1757018215955,1.9496781,203.46,203.4,7.57]
[1757018216953,1.9496781,203.46,203.4,9.5196781]
[1757018217355,1.9496781,203.46,203.4,1.9496781]
[1757018217658,1.9496781,203.46,203.41,7.57]
[1757018219153,4.48,203.48,203.41,7.57]
[1757018219457,6.4296781,203.48,203.42,1.9496781]
[1757018219652,336.96839329,203.57,203.42,1.9496781]
[1757018219653,4.48,203.52,203.43,7.57]
[1757018219863,1.9496781,203.49,203.43,7.57]
[1757018223767,6.4296781,203.47,203.43,7.57]
[1757018224067,6.4296781,203.47,203.42,1.9496781]
[1757018224289,6.4296781,203.47,203.43,7.57]
[1757018224457,6.4296781,203.47,203.42,1.9496781]
[1757018224960,6.4296781,203.47,203.43,7.57]
[1757018225166,4.48,203.47,203.42,1.9496781]
[1757018226168,4.48,203.47,203.43,7.57]
[1757018226965,4.48,203.47,203.42,1.9496781]
[1757018227164,4.48,203.47,203.43,7.57]
[1757018228268,4.48,203.47,203.42,1.9496781]
[1757018228571,1.9496781,203.48,203.42,1.9496781]
[1757018228774,1.9496781,203.48,203.43,7.57]
[1757018228967,1.9496781,203.48,203.42,1.9496781]
[1757018229365,1.9496781,203.48,203.43,7.57]
[1757018230063,1.9496781,203.49,203.43,7.57]
[1757018231173,1.9496781,203.49,203.43,1.9496781]
[1757018231470,1.9496781,203.49,203.44,7.57]
[1757018231675,1.9496781,203.49,203.43,1.9496781]
[1757018231879,1.9496781,203.49,203.44,7.57]
[1757018232172,6.4296781,203.49,203.44,7.57]
[1757018232565,1.9496781,203.49,203.43,1.9496781]
[1757018232773,6.4296781,203.49,203.44,7.57]
[1757018232978,1.9496781,203.49,203.43,1.9496781]
[1757018233172,6.4296781,203.49,203.44,7.57]
[1757018233676,17.98,203.56,203.44,7.57]
[1757018233872,1.9496781,203.49,203.43,1.9496781]
[1757018234783,1.9496781,203.49,203.44,7.57]
[1757018235273,1.9496781,203.49,203.43,1.9496781]
[1757018235466,23.48839329,203.56,203.44,7.57]
[1757018235467,4.48,203.5,203.44,7.57]
[1757018235668,4.48,203.55,203.46,7.57]
[1757018235887,1.9496781,203.53,203.46,7.57]
[1757018239581,1.9496781,203.53,203.47,1.9496781]
[1757018239778,4.48,203.55,203.49,1.9496781]
[1757018239979,4.48,203.55,203.5,7.37]
[1757018240177,1.9496781,203.56,203.5,7.37]
[1757018240474,4.48,203.58,203.5,7.37]
[1757018240675,6.4296781,203.58,203.52,7.37]
[1757018241376,4.48,203.58,203.52,7.37]
[1757018244273,1.9496781,203.59,203.53,1.9496781]
[1757018244479,1.9496781,203.59,203.54,7.37]
[1757018244675,1.9496781,203.59,203.53,1.9496781]
[1757018245877,6.4296781,203.59,203.54,7.37]
[1757018246274,1.9496781,203.59,203.53,1.9496781]
[1757018246979,6.4296781,203.59,203.53,9.3196781]
[1757018249982,6.4296781,203.59,203.54,7.37]
[1757018250181,6.4296781,203.59,203.53,1.9496781]
[1757018251477,6.4296781,203.59,203.54,7.37]
[1757018251879,6.4296781,203.59,203.53,7.37]
[1757018257290,4.48,203.59,203.53,7.37]
[1757018257588,6.4296781,203.59,203.53,7.37]
[1757018260987,4.48,203.59,203.53,7.37]
[1757018261384,6.4296781,203.59,203.53,7.37]
[1757018262786,4.48,203.59,203.53,7.37]
[1757018262987,1.9496781,203.58,203.52,1.9496781]
[1757018263990,1.9496781,203.58,203.53,7.37]
[1757018264191,4.48,203.57,203.53,7.37]
[1757018264381,6.4296781,203.54,203.48,1.9496781]
[1757018264586,1.9496781,203.52,203.47,7.37]
[1757018264786,1.9496781,203.52,203.46,1.9496781]
[1757018264987,1.9496781,203.52,203.47,7.37]
[1757018265389,1.9496781,203.52,203.46,1.9496781]
[1757018265587,4.48,203.53,203.47,7.37]
[1757018265790,3.04400399,203.55,203.47,7.37]
[1757018266391,4.48,203.54,203.47,7.37]
[1757018266597,4.48,203.51,203.43,7.37]
[1757018266784,3.04400399,203.52,203.43,7.37]
[1757018266984,3.04400399,203.49,203.43,7.37]
[1757018267485,4.48,203.48,203.38,7.37]
[1757018267694,4.48,203.45,203.38,7.37]
[1757018268597,4.48,203.45,203.39,0.03178902]
[1757018271206,4.48,203.45,203.4,7.79]
[1757018271607,11.38,203.53,203.39,0.03178902]
[1757018271803,4.48,203.48,203.4,7.79]
[1757018275608,4.48,203.48,203.42,0.03105921]
[1757018278010,4.48,203.48,203.42,7.82105921]
[1757018280810,4.48,203.45,203.42,0.03105921]
[1757018281011,3.04400399,203.46,203.42,0.03105921]
[1757018281409,4.48,203.45,203.42,0.03105921]
[1757018282704,3.04400399,203.46,203.42,0.03105921]
[1757018282910,4.48,203.45,203.42,0.03105921]
[1757018283416,3.04400399,203.46,203.42,0.03105921]
[1757018283617,5.50839329,203.56,203.42,7.82105921]
[1757018283813,7.52400399,203.49,203.42,7.82105921]
[1757018284116,4.48,203.48,203.43,0.03125679]
[1757018284411,7.52400399,203.49,203.43,0.03125679]
[1757018285917,10.74,203.55,203.44,7.79]
[1757018285918,4.48,203.54,203.44,7.79]
[1757018286809,4.48,203.54,203.47,7.82116787]
[1757018289114,7.52400399,203.58,203.47,7.82116787]
[1757018289418,4.48,203.58,203.5,7.79]
[1757018290609,3.04400399,203.61,203.5,7.79]
[1757018290813,7.52400399,203.61,203.5,7.79]
[1757018292020,7.52400399,203.61,203.53,7.82126751]
[1757018293421,4.48,203.61,203.53,7.82126751]
[1757018302322,4.48,203.58,203.53,7.82126751]
[1757018302720,3.04400399,203.59,203.53,7.79]
[1757018303023,7.52400399,203.59,203.53,7.8266989]
[1757018306124,4.48,203.59,203.53,7.8266989]
[1757018318332,3.04400399,203.62,203.53,7.8266989]
[1757018318533,7.52400399,203.62,203.53,7.8266989]
[1757018318925,4.48,203.62,203.53,3.08070289]
[1757018319131,4.48,203.62,203.54,8.01]
[1757018323332,4.48,203.66,203.56,8.01]
[1757018323935,4.48,203.66,203.6,8.01]
[1757018325435,4.48,203.66,203.6,9.95529615]
[1757018329546,4.5,203.64,203.6,8.01]
[1757018329741,1.94529615,203.63,203.59,0.03389364]
[1757018330046,4.5,203.62,203.59,0.03417262]
[1757018330248,4.5,203.62,203.59,7.65417262]
[1757018330745,4.5,203.63,203.6,7.62]
[1757018337849,4.5,203.61,203.59,0.03417262]
[1757018338150,6.44529615,203.6,203.59,0.03417262]
[1757018338845,4.5,203.6,203.59,0.03417262]
[1757018339657,6.44529615,203.61,203.59,7.65417262]
[1757018340253,1.94529615,203.61,203.6,7.62]
[1757018340448,6.44529615,203.61,203.59,0.03417262]
[1757018340849,4.5,203.6,203.59,0.03417262]
[1757018341153,6.44529615,203.62,203.59,7.65417262]
[1757018341353,6.44529615,203.62,203.6,7.62]
[1757018342450,1.94529615,203.64,203.6,7.62]
[1757018342646,4.5,203.63,203.6,7.62]
[1757018344453,1.94529615,203.64,203.6,7.62]
[1757018344654,1.94529615,203.64,203.59,0.03417262]
[1757018345051,1.94529615,203.64,203.6,7.62]
[1757018345551,4.5,203.63,203.6,7.62]
[1757018353066,4.5,203.63,203.59,0.03417262]
[1757018353663,4.5,203.63,203.6,7.62]
[1757018353967,1.94529615,203.66,203.6,7.62]
[1757018356568,6.44529615,203.66,203.6,7.62]
[1757018357971,6.44529615,203.66,203.6,1.94529615]
[1757018358268,0.85490032,203.71,203.61,7.65]
[1757018358269,4.49,203.68,203.61,7.65]
[1757018358666,1.94529615,203.67,203.61,7.65]
[1757018358871,6.41529615,203.67,203.63,7.65]
[1757018359264,1.94529615,203.67,203.63,7.65]
[1757018359667,4.47,203.66,203.63,7.65]
[1757018361874,1.94529615,203.67,203.63,7.65]
[1757018362272,4.47,203.66,203.63,7.65]
[1757018362574,4.47,203.65,203.63,7.65]
[1757018363675,1.94529615,203.66,203.62,0.03470796]
[1757018363875,4.47,203.65,203.62,0.03470796]
[1757018364176,4.47,203.65,203.62,7.68470796]
[1757018364376,4.47,203.65,203.63,7.65]
[1757018364976,1.94529615,203.66,203.62,0.03470796]
[1757018365176,1.94529615,203.66,203.63,7.65]
[1757018365581,1.94529615,203.66,203.62,0.03470796]
[1757018365777,1.94529615,203.66,203.63,7.65]
[1757018365978,6.41529615,203.68,203.62,0.03470796]
[1757018366179,6.41529615,203.68,203.62,7.68470796]
[1757018375188,1.94529615,203.66,203.62,0.03470796]
[1757018375688,4.47,203.65,203.62,0.03470796]
[1757018378196,6.41529615,203.63,203.62,0.03470796]
[1757018380397,1.94529615,203.65,203.62,0.03470796]
[1757018380698,6.41529615,203.65,203.62,7.68470796]
[1757018381396,4.47,203.64,203.62,7.68470796]
[1757018382201,4.47,203.64,203.62,0.03470796]
[1757018384000,6.41529615,203.63,203.62,0.03470796]
[1757018384603,4.47,203.62,203.53,7.65]
[1757018384798,1.94529615,203.57,203.51,6.02101168]
[1757018385199,1.94529615,203.57,203.52,7.65]
[1757018385398,1.94529615,203.57,203.51,1.94529615]
[1757018385602,4.47,203.59,203.52,7.65]
[1757018385808,0.03534648,203.56,203.51,7.65]
[1757018386706,0.03534648,203.56,203.5,4.07571553]
[1757018386906,0.03534648,203.56,203.51,7.65]
[1757018387805,0.03534648,203.56,203.51,7.44]
[1757018388006,0.03534648,203.56,203.5,4.07571553]
[1757018388206,0.03534648,203.56,203.51,7.44]
[1757018388510,4.51534648,203.56,203.5,7.44]
[1757018391900,7.5578945,203.56,203.5,7.44]
[1757018392611,4.51534648,203.56,203.5,7.44]
[1757018392813,7.5578945,203.56,203.5,7.44]
[1757018393011,4.48,203.55,203.48,7.44]
[1757018397912,3.0778945,203.56,203.48,7.44]
[1757018398214,4.48,203.52,203.48,7.44]
[1757018398509,4.48,203.52,203.45,127.42]
[1757018399102,0.03578959,203.51,203.45,127.42]
[1757018399308,0.03578959,203.51,203.45,119.98]
[1757018399605,0.03578959,203.51,203.46,7.44]
[1757018400514,0.03578959,203.51,203.45,119.98]
[1757018401407,0.03578959,203.51,203.46,7.44]
[1757018401806,0.03578959,203.51,203.45,119.98]
[1757018402014,0.03578959,203.51,203.46,7.44]
[1757018402408,0.03578959,203.51,203.45,119.98]
[1757018403513,0.03578959,203.51,203.46,7.44]
[1757018403909,0.03578959,203.51,203.45,119.98]
[1757018404311,0.03578959,203.51,203.46,7.44]
[1757018404818,0.03578959,203.51,203.43,7.44]
[1757018405115,7.52254802,203.5,203.43,7.44]
[1757018405815,0.03578959,203.51,203.43,7.44]
[1757018409312,0.03578959,203.51,203.42,16.62254802]
[1757018409313,0.03578959,203.51,203.46,7.44]
[1757018409516,4.48,203.6,203.48,3.04254802]
[1757018409712,4.48,203.6,203.49,7.44]
[1757018410511,6.78,203.64,203.49,7.44]
[1757018410512,4.52,203.58,203.49,7.44]
[1757018410711,4.52,203.58,203.52,0.03529174]
[1757018413625,3.04254802,203.56,203.52,0.03529174]
[1757018413828,4.52,203.55,203.52,0.03529174]
[1757018414225,3.04254802,203.56,203.52,0.03529174]
[1757018414426,4.52,203.55,203.52,0.03529174]
[1757018415027,3.04254802,203.56,203.52,0.03529174]
[1757018415529,4.52,203.55,203.52,0.03529174]
[1757018416128,7.56254802,203.53,203.52,0.03529174]
[1757018416924,4.52,203.53,203.52,0.03529174]
[1757018417223,3.04254802,203.56,203.52,7.47529174]
[1757018417429,4.52,203.55,203.52,7.47529174]
[1757018419325,4.51,203.55,203.52,0.03529174]
[1757018419831,3.04254802,203.56,203.52,0.03529174]
[1757018420025,4.51,203.55,203.52,0.03529174]
[1757018420223,3.04254802,203.56,203.52,0.03529174]
[1757018420727,3.04254802,203.53,203.52,0.03529174]
[1757018421029,7.55254802,203.53,203.52,0.03529174]
[1757018424532,7.55254802,203.53,203.44,7.39]
[1757018424533,4.51,203.52,203.44,7.39]
[1757018424730,4.51,203.48,203.44,7.39]
[1757018424926,4.51,203.48,203.4,7.39]
[1757018425132,176.98839329,203.59,203.4,7.39]
[1757018425432,3.04254802,203.5,203.4,7.39]
[1757018426233,0.03282136,203.47,203.4,7.39]
[1757018428432,0.03282136,203.47,203.41,7.39]
[1757018436042,7.59536938,203.47,203.41,7.39]
[1757018436237,4.52,203.46,203.41,7.39]
[1757018436433,3.07536938,203.47,203.37,4.09946153]
[1757018436637,7.59536938,203.47,203.38,7.39]
[1757018438338,0.03282136,203.47,203.38,7.39]
[1757018439140,7.56254802,203.46,203.38,7.39]
[1757018442847,3.04254802,203.46,203.38,7.39]
[1757018443050,0.03282136,203.47,203.38,7.39]
[1757018443946,4.55282136,203.47,203.38,7.39]
[1757018446260,4.52,203.45,203.38,7.39]
[1757018447053,7.56254802,203.45,203.38,7.39]
[1757018447546,1.9496605,203.43,203.38,7.39]
[1757018448156,1.98457507,203.43,203.38,7.39]
[1757018448351,1.98457507,203.43,203.37,1.9496605]
[1757018448556,1.98457507,203.43,203.38,7.48]
[1757018448759,1.9496605,203.41,203.36,7.48]
[1757018449458,1.9496605,203.41,203.35,316.46]
[1757018449848,1.9496605,203.41,203.35,7.48]
[1757018453756,1.9496605,203.39,203.35,7.48]
[1757018453954,6.4796605,203.39,203.35,7.48]
[1757018454149,6.4796605,203.39,203.33,7.48]
[1757018454354,1.9496605,203.37,203.33,7.48]
[1757018454760,1.98216121,203.37,203.33,7.48]
[1757018455257,1.98216121,203.37,203.29,7.48]
[1757018455456,0.03250071,203.37,203.32,7.48]
[1757018455657,1.98216121,203.37,203.32,7.48]
[1757018456171,0.03250071,203.37,203.34,7.48]
[1757018457263,0.03250071,203.37,203.33,1.9496605]
[1757018457462,0.03250071,203.37,203.34,7.48]
[1757018457662,0.03250071,203.37,203.33,1.9496605]
[1757018457861,0.03250071,203.37,203.34,7.48]
[1757018458062,0.03250071,203.37,203.33,7.48]
[1757018458459,0.03250071,203.37,203.32,1.9496605]
[1757018458861,0.03250071,203.37,203.33,7.48]
[1757018460163,0.03250071,203.37,203.32,1.9496605]
[1757018460365,0.03250071,203.37,203.33,7.48]
[1757018460767,0.03250071,203.37,203.32,1.9496605]
[1757018460965,0.03250071,203.37,203.33,7.48]
[1757018461366,0.03250071,203.37,203.32,1.9496605]
[1757018461567,0.03250071,203.37,203.33,7.48]
[1757018463169,0.03250071,203.37,203.32,1.9496605]
[1757018463365,0.03250071,203.37,203.33,7.48]
[1757018463569,0.03250071,203.37,203.32,1.9496605]
[1757018463770,0.03250071,203.37,203.33,7.48]
[1757018463970,0.03250071,203.37,203.32,1.9496605]
[1757018464162,0.03250071,203.37,203.33,7.48]
[1757018465163,0.03250071,203.37,203.3,7.48]
[1757018465369,0.03250071,203.37,203.33,7.48]
[1757018465872,0.03250071,203.37,203.35,7.48]
[1757018466070,0.03250071,203.37,203.34,1.9496605]
[1757018466270,0.03250071,203.37,203.35,7.48]
[1757018466867,0.03250071,203.37,203.34,1.9496605]
[1757018467869,0.03250071,203.37,203.35,7.48]
[1757018468175,0.03250071,203.37,203.34,1.9496605]
[1757018468873,0.03250071,203.37,203.35,7.48]
[1757018469275,0.03250071,203.37,203.34,1.9496605]
[1757018469574,0.03250071,203.37,203.35,7.48]
[1757018470784,0.03250071,203.37,203.34,1.9496605]
[1757018471382,0.03250071,203.37,203.35,7.48]
[1757018471679,0.03250071,203.37,203.33,7.48]
[1757018471879,0.03250071,203.37,203.34,1.9496605]
[1757018472886,0.03250071,203.37,203.35,7.48]
[1757018473584,0.03250071,203.37,203.34,1.9496605]
[1757018474683,0.03250071,203.37,203.35,7.48]
[1757018474883,0.03250071,203.37,203.34,1.9496605]
[1757018475177,0.03250071,203.37,203.3,4.0865941]
[1757018475178,0.03250071,203.37,203.32,1.9496605]
[1757018475485,0.03250071,203.37,203.33,7.48]
[1757018475685,0.03250071,203.37,203.32,1.9496605]
[1757018476187,0.03250071,203.37,203.33,7.48]
[1757018476686,0.03250071,203.37,203.32,1.9496605]
[1757018476890,0.03250071,203.37,203.32,7.48]
[1757018478082,0.03250071,203.37,203.3,4.0865941]
[1757018478282,0.03250071,203.37,203.31,9.9296605]
[1757018480283,0.03250071,203.37,203.31,14.0162546]
[1757018480485,0.03250071,203.37,203.32,7.98]
[1757018484891,0.03250071,203.37,203.3,4.0865941]
[1757018485184,6.4796605,203.33,203.29,7.98]
[1757018485584,4.53,203.32,203.29,7.98]
[1757018487386,4.53,203.32,203.26,7.98]
[1757018487585,1.98303045,203.33,203.26,7.98]
[1757018488187,4.53,203.26,203.2,4.0865941]
[1757018488386,4.53,203.26,203.19,7.98]
[1757018488387,1.9496605,203.21,203.19,7.98]
[1757018488784,1.9496605,203.21,203.15,1.9496605]
[1757018488785,1.9496605,203.21,203.16,7.98]
[1757018488986,1.9496605,203.21,203.15,1.9496605]
[1757018489391,0.03740161,203.22,203.17,1.9496605]
[1757018489583,0.03740161,203.22,203.18,7.98]
[1757018489782,0.03740161,203.22,203.14,12.0665941]
[1757018490094,0.03740161,203.22,203.18,7.98]
[1757018490587,0.03740161,203.22,203.21,1.9496605]
[1757018490782,0.03740161,203.22,203.21,9.9296605]
[1757018491385,0.03740161,203.22,203.21,33.9296605]
[1757018491794,0.03740161,203.22,203.21,7.98]
[1757018492697,0.03740161,203.22,203.21,9.9296605]
[1757018492896,0.03740161,203.22,203.21,7.98]
[1757018493194,0.03740161,203.22,203.21,9.9296605]
[1757018495297,0.03740161,203.22,203.21,7.98]
[1757018496498,0.03740161,203.22,203.19,80.78]
[1757018496499,0.03740161,203.22,203.19,7.98]
[1757018497092,0.03740161,203.22,203.17,7.98]
[1757018497292,0.03740161,203.22,203.17,116.04]
[1757018497488,0.03740161,203.22,203.16,1.9496605]
[1757018497893,0.03740161,203.22,203.16,27.3896605]
[1757018498095,0.03740161,203.22,203.16,48.6096605]
[1757018498500,0.03740161,203.22,203.17,7.98]
[1757018498794,0.03740161,203.22,203.16,68.7696605]
[1757018499300,0.03740161,203.22,203.14,7.98]
[1757018499301,1.9496605,203.19,203.14,7.98]
[1757018499797,1.98111187,203.19,203.14,7.98]
[1757018500602,1.98111187,203.19,203.13,1.9496605]
[1757018500806,1.98111187,203.19,203.14,7.98]
[1757018501000,1.98111187,203.19,203.13,1.9496605]
[1757018501598,1.98111187,203.19,203.14,7.98]
[1757018501900,1.98111187,203.19,203.13,30.7696605]